fUSD/lending_fUSD_20251023
["ID","MTS","AMOUNT","RATE_DAILY","PERIOD"]
[392174679,1761234646372,-500.0,0.00044963,120]
[392174680,1761234646381,-500.0,0.00044963,120]
[392174681,1761234646391,-500.0,0.00044963,120]
[392174682,1761234646401,-500.0,0.00044963,120]
[392174683,1761234646411,-500.0,0.00044963,120]
[392174684,1761234646421,-1112.0,0.00044964,7]
[392174685,1761234646430,-14144.9143084,0.00044964,2]
[392174686,1761234646439,-8216.5887589,0.00044964,2]
[392174687,1761234646448,-1160.22636,0.00044964,2]
[392174688,1761234646458,-10565.3575914,0.00044964,2]
[392174689,1761234646467,-208.276738,0.00044964,120]
[392174690,1761234646476,-208.276738,0.00044964,120]
[392174691,1761234646486,-208.276738,0.00044964,120]
[392174692,1761234646495,-208.276738,0.00044964,120]
[392174693,1761234646505,-396.49965963,0.0004498,120]
[392174694,1761234646514,-500.0,0.0004498,120]
[392174695,1761234646524,-42439.0490355,0.0004499,3]
[392174696,1761234646533,-258.68487085,0.0004499,7]
[392174697,1761234646542,-150.34,0.0004499,2]
[392174698,1761234646551,-150.34,0.0004499,2]
[392174699,1761234646561,-1005.0,0.00044999,120]
[392174700,1761234646571,-500.0,0.00044999,120]
[392174701,1761234646580,-500.0,0.00044999,120]
[392174702,1761234646591,-500.0,0.00044999,120]
[392174703,1761234646600,-500.0,0.00044999,120]
[392174704,1761234646610,-228.86712927,0.00044999,120]
[392174705,1761234646620,-130.46321918,0.00044999,120]
[392174706,1761234646636,-369.53678082,0.00044999,120]
[392174707,1761234646646,-470.37318838,0.00044999,120]
[392174708,1761234646657,-29.62681162,0.00044999,120]
[392174709,1761234646667,-500.0,0.00044999,120]
[392174710,1761234646676,-467.29727602,0.00044999,120]
[392174793,1761234802737,500.0,0.00024932,2]
[392174848,1761235102824,302.1341574,0.0003,2]
[392174925,1761235384522,347.77,0.00013699,2]
[392174926,1761235384779,347.77,0.00020187,2]
[392174927,1761235385008,347.77,0.00026676,2]
[392174933,1761235402344,500.0,0.00024932,2]
[392174937,1761235430317,-347.77,0.00033165,2]
[392175014,1761235545787,5232.23,0.00034,2]
[392175018,1761235568075,1755.648907,7.945e-05,2]
[392175045,1761235708354,5000.0,0.00036567,120]
[392175062,1761235749151,-150.0,0.00033999,2]
[392175063,1761235749171,-300.0,0.00033999,3]
[392175064,1761235749193,-3314.05611753,0.00034,2]
[392175071,1761235755084,-414.996962,0.0003383,2]
[392175072,1761235755106,-7626.38390317,0.00034,2]
[392175079,1761235770094,-272.97387634,0.00033999,7]
[392175111,1761235832005,-0.93919727,0.00033966,2]
[392175112,1761235832016,-729.00509807,0.00033966,2]
[392175113,1761235832025,-2500.0,0.00033983,120]
[392175114,1761235832034,-354.4629082,0.00033998,2]
[392175115,1761235832072,-45.5370918,0.00033998,2]
[392175116,1761235832088,-1200.0,0.00033998,3]
[392175117,1761235832098,-300.0,0.00033998,3]
[392175118,1761235832108,-227.02612366,0.00033999,7]
[392175119,1761235832118,-500.0,0.00033999,7]
[392175120,1761235832127,-500.0,0.00033999,7]
[392175121,1761235832137,-500.0,0.00033999,7]
[392175122,1761235832147,-500.0,0.00033999,7]
[392175123,1761235832157,-155.62424327,0.00033999,7]
[392175124,1761235832166,-380.70019912,0.00033999,7]
[392175125,1761235832176,-308.58033215,0.00034,2]
[392175126,1761235832188,-10262.79225835,0.00034,2]
[392175127,1761235832199,-76540.3873888,0.00034,2]
[392175128,1761235832209,-2500.0,0.00034969,120]
[392175129,1761235832218,-226.20635545,0.00036382,2]
[392175130,1761235832227,-560.0,0.00036491,2]
[392175131,1761235832237,-153.0,0.000365,30]
[392175132,1761235832247,-153.0,0.000365,30]
[392175133,1761235832256,-153.0,0.000365,30]
[392175134,1761235832265,-153.0,0.000365,30]
[392175135,1761235832276,-153.0,0.000365,30]
[392175136,1761235832289,-500.0,0.000365,5]
[392175137,1761235832298,-331.51333905,0.000365,5]
[392175138,1761235832307,-500.0,0.000365,5]
[392175140,1761235832317,-500.0,0.000365,3]
[392175142,1761235832327,-500.0,0.000365,5]
[392175144,1761235832337,-500.37487873,0.000365,5]
[392175146,1761235832346,-500.0,0.000365,5]
[392175148,1761235832356,-500.0,0.00036705,2]
[392175150,1761235832366,-2500.0,0.00037363,120]
[392175152,1761235832375,-501.18091884,0.000388,5]
[392175154,1761235832385,-347.77,0.00039654,2]
[392175155,1761235832395,-1092.0,0.0004,5]
[392175157,1761235832404,-150.0,0.00040488,4]
[392175158,1761235832413,-168.0,0.00040967,2]
[392175159,1761235832423,-150.0,0.00040967,2]
[392175160,1761235832433,-188.46,0.00041039,2]
[392175161,1761235832442,-168.0,0.00041064,2]
[392175162,1761235832452,-200.0,0.00041096,20]
[392175163,1761235832462,-168.0,0.00041504,2]
[392175164,1761235832472,-168.0,0.00041795,2]
[392175165,1761235832485,-168.0,0.00042267,2]
[392175166,1761235832494,-300.0,0.00042714,7]
[392175167,1761235832504,-491.66,0.00043011,3]
[392175168,1761235832513,-3747.01,0.00043011,2]
[392175169,1761235832522,-158.41,0.00043576,2]
[392175170,1761235832532,-150.0,0.00043677,2]
[392175171,1761235832541,-151.0,0.00043709,2]
[392175172,1761235832551,-151.0,0.00043709,2]
[392175173,1761235832560,-151.0,0.00043709,2]
[392175175,1761235832570,-151.0,0.00043709,2]
[392175176,1761235832580,-151.0,0.00043709,2]
[392175177,1761235832589,-151.0,0.00043709,2]
[392175178,1761235832599,-151.0,0.00043709,2]
[392175179,1761235832609,-151.0,0.00043709,2]
[392175180,1761235832618,-151.0,0.00043709,2]
[392175181,1761235832627,-151.0,0.00043709,2]
[392175182,1761235832637,-151.0,0.00043709,2]
[392175183,1761235832647,-151.0,0.00043709,2]
[392175184,1761235832656,-151.0,0.00043709,2]
[392175185,1761235832666,-151.0,0.00043709,2]
[392175186,1761235832679,-151.0,0.00043709,2]
[392175187,1761235832689,-151.0,0.00043709,2]
[392175188,1761235832698,-151.0,0.00043709,2]
[392175189,1761235832708,-161.17841082,0.00043709,2]
[392175190,1761235832717,-8541.09,0.00043735,2]
[392175191,1761235832726,-294.96,0.00043774,2]
[392175192,1761235832735,-500.0,0.00043775,10]
[392175193,1761235832744,-3486.0,0.00043779,2]
[392175194,1761235832754,-1184.0,0.00043779,2]
[392175195,1761235832765,-2549.0,0.00043779,2]
[392175196,1761235832776,-5671.71,0.00043795,2]
[392175197,1761235832785,-530.84,0.0004397,120]
[392175198,1761235832801,-250.0,0.00043983,120]
[392175199,1761235832815,-2079.98751169,0.00044,120]
[392175200,1761235832828,-436.0,0.00044184,30]
[392175201,1761235832841,-698.2,0.00044273,30]
[392175202,1761235832854,-869.742,0.00044273,70]
[392175203,1761235832865,-429.348721,0.00044323,10]
[392175204,1761235832881,-166.43,0.00044502,2]
[392175205,1761235832892,-436.0,0.00044639,30]
[392175206,1761235832903,-547.0,0.000447,2]
[392175207,1761235832914,-2296.13724,0.0004482,25]
[392175208,1761235832925,-2500.0,0.00044849,2]
[392175209,1761235832936,-311.43134681,0.00044853,15]
[392175210,1761235832948,-1357.4,0.00044859,2]
[392175211,1761235832960,-233.6499,0.00044859,2]
[392175212,1761235832971,-5000.0,0.00044859,120]
[392175213,1761235832981,-167.76341256,0.00044859,15]
[392175215,1761235832991,-702.41063592,0.00044859,17]
[392175216,1761235833003,-311.43134672,0.00044859,15]
[392175217,1761235833013,-311.43134672,0.00044866,15]
[392175218,1761235833024,-150.0,0.00044866,15]
[392175219,1761235833035,-150.0,0.00044866,15]
[392175220,1761235833046,-150.0,0.00044866,15]
[392175221,1761235833058,-150.0,0.00044866,15]
[392175222,1761235833072,-150.0,0.00044866,15]
[392175223,1761235833084,-150.0,0.00044866,15]
[392175224,1761235833097,-150.0,0.00044866,15]
[392175225,1761235833107,-36.38524687,0.00044872,15]
[392175226,1761235833123,-275.04609985,0.00044872,15]
[392175227,1761235833133,-270.26390015,0.00044878,15]
[392175228,1761235833146,-41.16744657,0.00044878,15]
[392175229,1761235833157,-311.43134672,0.00044885,15]
[392175230,1761235833166,-104.18709491,0.00044888,120]
[392175231,1761235833187,-395.81290509,0.00044888,120]
[392175232,1761235833197,-500.0,0.00044888,120]
[392175233,1761235833209,-500.0,0.00044888,120]
[392175234,1761235833220,-0.97468681,0.00044888,120]
[392175235,1761235833234,-583.07531319,0.00044888,120]
[392175236,1761235833245,-500.0,0.00044888,120]
[392175237,1761235833255,-500.0,0.00044888,120]
[392175238,1761235833267,-500.0,0.00044888,120]
[392175239,1761235833278,-99.30429725,0.00044888,120]
[392175251,1761235837936,-266.49013938,0.00036499,15]
[392175253,1761235837950,-500.0,0.000365,5]
[392175256,1761235837964,-400.69570275,0.00044888,120]
[392175258,1761235837976,-500.0,0.00044888,120]
[392175260,1761235837988,-500.0,0.00044888,120]
[392175262,1761235838000,-500.0,0.00044888,120]
[392175264,1761235838013,-296.08761914,0.00044888,120]
[392175265,1761235838024,-150.0,0.00044888,60]
[392175266,1761235838036,-150.0,0.00044888,60]
[392175267,1761235838048,-150.0,0.00044888,60]
[392175268,1761235838059,-150.0,0.00044888,41]
[392175269,1761235838070,-651.65,0.00044888,30]
[392175270,1761235838081,-311.43134672,0.00044891,15]
[392175271,1761235838091,-311.43134672,0.00044897,15]
[392175272,1761235838103,-6690.946,0.000449,120]
[392175273,1761235838115,-311.43134672,0.00044904,15]
[392175274,1761235838125,-311.43134672,0.0004491,15]
[392175275,1761235838137,-150.0,0.00044921,15]
[392175276,1761235838149,-150.0,0.00044921,15]
[392175277,1761235838160,-151.0,0.00044932,2]
[392175278,1761235838173,-151.0,0.00044932,2]
[392175279,1761235838186,-151.0,0.00044932,2]
[392175280,1761235838197,-151.0,0.00044932,2]
[392175281,1761235838207,-151.0,0.00044932,2]
[392175282,1761235838218,-151.0,0.00044932,2]
[392175283,1761235838229,-151.0,0.00044932,2]
[392175284,1761235838239,-151.0,0.00044932,2]
[392175285,1761235838250,-151.0,0.00044932,2]
[392175286,1761235838260,-151.0,0.00044932,2]
[392175287,1761235838271,-151.0,0.00044932,2]
[392175288,1761235838283,-200.63830546,0.00044932,2]
[392175289,1761235838295,-150.0,0.00044943,41]
[392175290,1761235838307,-500.0,0.00044948,120]
[392175291,1761235838318,-37222.2888551,0.00044949,3]
[392175292,1761235838331,-2242.4486318,0.0004495,2]
[392175293,1761235838343,-570.98880332,0.00044953,120]
[392175294,1761235838354,-511.28545921,0.00044958,120]
[392175295,1761235838365,-500.0,0.00044958,120]
[392175296,1761235838376,-500.0,0.00044958,120]
[392175297,1761235838387,-517.01438883,0.00044958,120]
[392175298,1761235838397,-500.0,0.00044958,12]
[392175299,1761235838408,-500.0,0.00044958,12]
[392175300,1761235838418,-500.0,0.00044958,120]
[392175301,1761235838429,-500.0,0.00044958,120]
[392175302,1761235838439,-230.27054838,0.00044958,120]
[392175303,1761235838450,-500.0,0.00044958,120]
[392175304,1761235838461,-500.0,0.00044958,120]
[392175305,1761235838472,-500.0,0.00044958,120]
[392175306,1761235838484,-500.0,0.00044958,120]
[392175307,1761235838495,-500.0,0.00044958,120]
[392175308,1761235838506,-500.0,0.00044958,120]
[392175309,1761235838517,-211.43,0.00044958,120]
[392175310,1761235838528,-649.94,0.00044958,120]
[392175311,1761235838538,-618.80919512,0.00044958,120]
[392175312,1761235838549,-500.0,0.00044958,120]
[392175313,1761235838559,-500.0,0.00044958,120]
[392175314,1761235838570,-500.0,0.00044958,2]
[392175315,1761235838583,-500.0,0.00044958,2]
[392175316,1761235838594,-188.15646057,0.00044959,30]
[392175317,1761235838605,-390.84709911,0.00044959,30]
[392175318,1761235838616,-22039.58246744,0.00044959,30]
[392175319,1761235838627,-434180.8731557,0.00044959,2]
[392175320,1761235838638,-3085.9031109,0.00044959,2]
[392175321,1761235838650,-3032.7115732,0.00044959,2]
[392175322,1761235838661,-6203.71480918,0.0004496,3]
[392175323,1761235838672,-3101.85740459,0.00044967,3]
[392175324,1761235838683,-15509.287023,0.0004497,3]
[392175325,1761235838695,-150.0,0.00044976,15]
[392175326,1761235838706,-3101.85740459,0.00044977,3]
[392175327,1761235838717,-3101.85740459,0.00044979,3]
[392175328,1761235838728,-3101.85740459,0.0004498,3]
[392175329,1761235838739,-3101.85740459,0.0004498,3]
[392175330,1761235838751,-500.0,0.0004498,120]
[392175331,1761235838763,-500.0,0.0004498,120]
[392175332,1761235838778,-500.0,0.0004498,2]
[392175333,1761235838788,-49629.7184734,0.0004498,3]
[392175334,1761235838799,-2500.0,0.00044987,120]
[392175335,1761235838812,-3101.85740459,0.00044989,3]
[392175336,1761235838822,-500.0,0.00044989,12]
[392175337,1761235838833,-500.0,0.00044989,120]
[392175338,1761235838844,-500.0,0.00044989,120]
[392175339,1761235838857,-151.0,0.0004499,2]
[392175340,1761235838868,-151.0,0.0004499,2]
[392175341,1761235838878,-166.62139,0.0004499,120]
[392175342,1761235838889,-6203.71480918,0.0004499,3]
[392175343,1761235838900,-150.35,0.0004499,2]
[392175344,1761235839077,-500.0,0.00044998,120]
[392175345,1761235839089,-500.0,0.00044998,120]
[392175346,1761235839100,-524.81595942,0.00044998,120]
[392175347,1761235839110,-500.0,0.00044998,120]
[392175348,1761235839120,-500.0,0.00044998,120]
[392175349,1761235839130,-3082.0,0.00044998,120]
[392175350,1761235839140,-200.0,0.00044999,7]
[392175351,1761235839149,-611.22316343,0.00044999,120]
[392175352,1761235839160,-489.66796528,0.00044999,12]
[392175353,1761235839170,-500.0,0.00044999,120]
[392175354,1761235839180,-500.0,0.00044999,120]
[392175355,1761235839190,-500.0,0.00044999,120]
[392175356,1761235839200,-500.0,0.00044999,120]
[392175357,1761235839210,-587.91709875,0.00044999,120]
[392175358,1761235839220,-2296.13723,0.00044999,26]
[392175359,1761235839231,-500.0,0.00044999,120]
[392175360,1761235839241,-500.0,0.00044999,120]
[392175361,1761235839251,-500.0,0.00044999,120]
[392175362,1761235839262,-500.0,0.00044999,120]
[392175363,1761235839272,-500.0,0.00044999,120]
[392175364,1761235839282,-500.0,0.00044999,120]
[392175365,1761235839292,-162.38966566,0.00044999,120]
[392175366,1761235839301,-500.0,0.00044999,2]
[392175367,1761235839311,-500.0,0.00044999,2]
[392175368,1761235839323,-572.87428064,0.00044999,2]
[392175369,1761235839332,-833.0,0.00045,7]
[392175370,1761235839343,-17572.95215123,0.00045,18]
[392175371,1761235839353,-355428.04937058,0.00045,120]
[392175372,1761235839367,-451.96669107,0.00045,120]
[392175373,1761235839382,-1940.57272717,0.00045,120]
[392175374,1761235839394,-3393.202313,0.00045,120]
[392175375,1761235839413,-50577.8142,0.00045,120]
[392175376,1761235839425,-2173.60226191,0.00045,120]
[392175377,1761235839437,-2506.09710681,0.00045,120]
[392175378,1761235839449,-2343.46774871,0.00045,120]
[392175389,1761235839965,-3952.12585585,0.00045,120]
[392175390,1761235839977,-10299.21082,0.00045,120]
[392175391,1761235839988,-3585.2231643,0.00045,120]
[392175392,1761235839999,-2705.9,0.00045,120]
[392175393,1761235840062,-2950.62910323,0.00045,120]
[392175394,1761235840073,-2761.53823395,0.00045,120]
[392175395,1761235840085,-549.85,0.00045,120]
[392175396,1761235840205,-1673.72730934,0.00045,120]
[392175397,1761235840216,-10043.64581799,0.00045,120]
[392175398,1761235840342,-232743.61668396,0.00045,120]
[392175399,1761235840355,-5447.1225,0.00045,120]
[392175400,1761235840367,-406.45,0.00045,120]
[392175407,1761235843299,-151.0,0.0003692,2]
[392175409,1761235843309,-642.39062848,0.00044879,2]
[392175411,1761235843321,-260.60937152,0.00044879,2]
[392175413,1761235843330,-1710.59062848,0.00045,120]
[392175468,1761235846136,-965.3293999,0.00045,120]
[392175480,1761235846470,-11427.7247676,0.00045,120]
[392175481,1761235846482,-414.996962,0.00045,120]
[392175497,1761235924974,727.46,0.00022001,2]
[392175498,1761235925229,171.4469356,0.00023159,2]
[392175499,1761235925259,556.0130644,0.00023159,2]
[392175500,1761235925455,727.46,0.00024317,2]
[392175501,1761235925804,727.46,0.00025475,2]
[392175502,1761235925919,727.46,0.00026633,2]
[392175503,1761235926143,727.46,0.00027791,2]
[392175523,1761235996982,504.753692,0.00027791,120]
[392175527,1761235999971,1029.3932436,0.00027791,120]
[392175826,1761236708597,5000.0,0.00015,2]
[392175827,1761236708622,5000.0,0.00015,2]
[392175828,1761236708647,5000.0,0.00015,2]
[392175829,1761236708675,5580.0,0.00015,2]
[392175830,1761236708706,80000.0,0.00015,2]
[392175831,1761236708738,557696.71997355,0.00015,2]
[392175835,1761236724484,-300.01934718,0.00021,2]
[392175836,1761236729320,-154.81523893,0.00021,2]
[392175839,1761236732993,-225.83644432,0.00021,2]
[392175841,1761236736032,-159.596045,0.00021,2]
[392175842,1761236738641,-290.41021117,0.00021,2]
[392175845,1761236742779,-359.58978883,0.0002,2]
[392175847,1761236745278,-180.40188871,0.0002,2]
[392175851,1761236747287,-250.0,0.0002,2]
[392175852,1761236749947,-319.59811129,0.0002,2]
[392175854,1761236752434,-267.13503218,0.0002,2]
[392175855,1761236753945,-232.86496782,0.0002,2]
[392175865,1761236756896,-195.29545837,0.0002,2]
[392175866,1761236759567,-193.87077065,0.0002,2]
[392175867,1761236761091,-250.0,0.0002,2]
[392175868,1761236762808,257.35511126,8e-05,2]
[392175882,1761236779763,2792.50706835,0.00036582,31]
[392175888,1761236817679,1134.06,0.000162,5]
[392175924,1761236876037,80000.0,0.00015,2]
[392175925,1761236876064,1379311.11649976,0.00015,2]
[392175947,1761236948184,-6210.892376,0.00019799,2]
[392175948,1761236948203,-159.596045,0.00019899,2]
[392175949,1761236948224,-150.0,0.00019999,2]
[392175950,1761236948247,-500.0,0.00019999,2]
[392175951,1761236948267,-437.64542458,0.00019999,2]
[392175952,1761236948286,-308.77136125,0.00019999,2]
[392175953,1761236948315,-500.0,0.00019999,2]
[392175954,1761236948339,-253.25765105,0.00019999,2]
[392175955,1761236948363,-500.0,0.00019999,2]
[392175956,1761236948385,-500.0,0.00019999,2]
[392175957,1761236948409,-539.64277284,0.00019999,2]
[392175958,1761236948431,-282.18253031,0.00019999,2]
[392175959,1761236948453,-500.0,0.00019999,2]
[392175960,1761236948475,-500.0,0.00019999,2]
[392175961,1761236948499,-500.0,0.00019999,2]
[392175962,1761236948520,-614.5268178,0.00019999,2]
[392175963,1761236948541,-17741.2329057,0.0002,2]
[392175964,1761236950106,-20812.53512802,0.0002,2]
[392175965,1761236950127,-1447.62053516,0.0002,5]
[392175966,1761236950146,-11522.10271005,0.0002,5]
[392175967,1761236950170,-2571.39336677,0.0002,5]
[392175969,1761236963134,-4648.42452704,0.0002,5]
[392175970,1761236963331,-250.0,0.000205,2]
[392175971,1761236963352,-1492.79976652,0.0002085,2]
[392175972,1761236963373,-2118.38579444,0.00021,2]
[392175973,1761236966286,-16750.93691896,0.00021,2]
[392175974,1761236966306,-19233.12781112,0.000215,2]
[392175975,1761236966326,-250.0,0.00022,2]
[392175976,1761236966345,-195.0,0.00022,2]
[392175978,1761236966364,-245.2372668,0.0002459,2]
[392175979,1761236966383,-195.88018385,0.00025,2]
[392175980,1761236966402,-150.15900356,0.00025,2]
[392175981,1761236966421,-1884.17555157,0.00025,7]
[392175982,1761236966443,-251.85940406,0.00026733,2]
[392175983,1761236966462,-645.85332489,0.00027468,2]
[392175984,1761236966483,-280.42744093,0.00027468,2]
[392175985,1761236966504,-359.23302563,0.00027468,2]
[392175986,1761236966523,-500.0,0.00027469,2]
[392175987,1761236966541,-2131.48903025,0.00028,2]
[392175988,1761236966561,-727.46,0.00028949,2]
[392175989,1761236966579,-668.22609838,0.00030107,2]
[392175991,1761236972101,-59.23390162,0.00030107,2]
[392175992,1761236972124,-727.46,0.00031265,2]
[392175993,1761236972145,-727.46,0.00032423,2]
[392175994,1761236972169,-727.46,0.00033581,2]
[392176033,1761237031995,-150.0,0.0003391,2]
[392176034,1761237032005,-170.61,0.0003391,2]
[392176035,1761237032015,-339.49,0.00034739,2]
[392176036,1761237032026,-261.52,0.00034739,2]
[392176037,1761237032037,-126.45,0.00034739,2]
[392176038,1761237032046,-727.46,0.00035896,2]
[392176039,1761237032056,-300.0,0.00035999,3]
[392176040,1761237032065,-646.0,0.00035999,3]
[392176041,1761237032074,-289.4443826,0.00036,2]
[392176042,1761237032101,-23450.69337862,0.00036,2]
[392176043,1761237032110,-727.46,0.00037054,2]
[392176044,1761237032120,-250.0,0.00037301,2]
[392176045,1761237032129,-300.0,0.00037301,120]
[392176046,1761237032139,-727.46,0.00038212,2]
[392176047,1761237032148,-958.0,0.00039,7]
[392176048,1761237032158,-727.46,0.0003937,2]
[392176049,1761237032168,-200.0,0.0004,120]
[392176050,1761237032178,-2256.0,0.0004,5]
[392176051,1761237032188,-166.66,0.00040131,30]
[392176052,1761237032198,-500.0,0.00040164,2]
[392176053,1761237032209,-727.46,0.00040528,2]
[392176054,1761237032218,-166.66,0.00040976,30]
[392176055,1761237032228,-30000.0,0.00041096,120]
[392176056,1761237032237,-200.0,0.00041096,20]
[392176057,1761237032246,-168.0,0.0004124,2]
[392176058,1761237032255,-168.0,0.00041534,2]
[392176059,1761237032264,-727.46,0.00041686,2]
[392176061,1761237032274,-168.0,0.00041766,2]
[392176063,1761237032283,-166.66,0.00041821,30]
[392176064,1761237032292,-2818.45,0.00042144,2]
[392176065,1761237032301,-666.0,0.00042256,20]
[392176066,1761237032310,-168.0,0.0004248,2]
[392176067,1761237032319,-1388.98,0.00042555,2]
[392176068,1761237032329,-166.66,0.00042666,30]
[392176069,1761237032338,-829.821,0.00042844,65]
[392176070,1761237032347,-727.46,0.00042844,2]
[392176071,1761237032356,-501.09,0.00043333,10]
[392176072,1761237032366,-547.46,0.00043397,30]
[392176073,1761237032375,-277.45,0.00043397,30]
[392176075,1761237032384,-315.72,0.00043397,30]
[392176077,1761237032394,-414.24,0.00043397,30]
[392176079,1761237032403,-168.47,0.00043397,30]
[392176081,1761237032412,-150.0,0.00043397,30]
[392176083,1761237032422,-547.46,0.00043397,30]
[392176085,1761237032431,-150.0,0.00043397,30]
[392176087,1761237032440,-166.66,0.00043511,30]
[392176088,1761237032449,-200.0,0.00044,120]
[392176089,1761237032458,-727.46,0.00044002,2]
[392176090,1761237032467,-219.32,0.00044014,2]
[392176092,1761237032477,-216.31,0.00044178,30]
[392176094,1761237032486,-168.47,0.00044192,30]
[392176096,1761237032495,-679.97,0.00044219,30]
[392176097,1761237032506,-176.3,0.00044219,30]
[392176098,1761237032517,-168.47,0.00044219,30]
[392176099,1761237032527,-150.0,0.00044219,30]
[392176100,1761237032537,-150.0,0.00044219,30]
[392176101,1761237032547,-414.24,0.00044219,30]
[392176102,1761237032556,-547.46,0.00044219,30]
[392176103,1761237032567,-168.47,0.00044219,30]
[392176104,1761237032577,-150.0,0.00044219,30]
[392176105,1761237032587,-414.24,0.00044219,30]
[392176106,1761237032596,-150.0,0.00044219,30]
[392176107,1761237032606,-547.46,0.00044219,30]
[392176108,1761237032615,-168.47,0.00044219,30]
[392176109,1761237032624,-414.24,0.00044219,30]
[392176110,1761237032633,-150.0,0.00044219,30]
[392176111,1761237032643,-547.46,0.00044219,30]
[392176112,1761237032801,-547.46,0.00044219,30]
[392176113,1761237032811,-547.46,0.00044278,30]
[392176114,1761237032821,-1097.22684519,0.000443,120]
[392176115,1761237032830,-166.66,0.00044356,30]
[392176116,1761237032840,-679.97,0.00044493,30]
[392176117,1761237032849,-168.0,0.00044527,2]
[392176118,1761237032859,-1211.86,0.00044548,30]
[392176119,1761237032868,-1530.75815,0.0004455,23]
[392176120,1761237032878,-168.47,0.00044575,30]
[392176121,1761237032887,-547.46,0.00044575,30]
[392176122,1761237032897,-10000.21668027,0.000447,2]
[392176123,1761237032907,-679.97,0.00044767,30]
[392176124,1761237032917,-775.62446225,0.00044801,30]
[392176125,1761237032926,-452.09732743,0.00044848,120]
[392176126,1761237032936,-251.46311794,0.00044848,120]
[392176127,1761237032946,-196.29920865,0.00044848,120]
[392176128,1761237032955,-17155.89,0.00044849,120]
[392176129,1761237032965,-157.39476089,0.0004485,120]
[392176130,1761237032974,-818.0,0.00044879,2]
[392176131,1761237032984,-226.556,0.00044879,2]
[392176132,1761237032993,-3486.0,0.00044879,2]
[392176133,1761237033002,-626.65155748,0.00044888,15]
[392176134,1761237033012,-626.65155739,0.00044889,15]
[392176135,1761237033021,-5000.0,0.0004489,120]
[392176136,1761237033031,-626.65155739,0.00044891,15]
[392176137,1761237033041,-626.65155739,0.00044892,15]
[392176138,1761237033051,-626.65155739,0.00044893,15]
[392176139,1761237033061,-626.65155739,0.00044895,15]
[392176140,1761237033071,-655.58326008,0.00044896,17]
[392176141,1761237033081,-626.65155739,0.00044896,15]
[392176142,1761237033090,-196.88557983,0.000449,17]
[392176143,1761237033099,-1000.0,0.000449,2]
[392176144,1761237033109,-761.25558082,0.000449,2]
[392176145,1761237033118,-195.673476,0.000449,2]
[392176146,1761237033128,-13395.163,0.000449,120]
[392176147,1761237033137,-167.07597198,0.000449,2]
[392176148,1761237033147,-761.25558081,0.0004493,2]
[392176149,1761237033156,-195.67347599,0.0004493,2]
[392176150,1761237033166,-196.88557983,0.0004494,17]
[392176151,1761237033176,-761.25558081,0.0004496,2]
[392176152,1761237033186,-195.67347599,0.0004496,2]
[392176153,1761237033196,-500.0,0.00044973,10]
[392176154,1761237033209,-500.0,0.00044973,10]
[392176155,1761237033218,-500.0,0.00044973,10]
[392176156,1761237033228,-500.0,0.00044973,2]
[392176157,1761237033239,-500.0,0.00044973,10]
[392176158,1761237033249,-500.0,0.00044973,10]
[392176159,1761237033258,-500.0,0.00044973,10]